bitfinex/quotes_BTCUSD_20251230
["timestamp","ask_amount","ask_price","bid_price","bid_amount"]
[1767107961399,0.0001072,88320.0,88311.0,0.01164]
[1767107961758,0.0001072,88320.0,88311.0,0.01109]
[1767107962570,2e-07,88320.0,88311.0,0.02241361]
[1767107962897,0.0002,88331.0,88320.0,0.01132246]
[1767107963098,0.74474,88344.0,88321.0,0.01144]
[1767107963277,0.49494726,88340.0,88322.0,0.0113222]
[1767107963823,0.49494726,88340.0,88321.0,0.01144]
[1767107964019,0.49494726,88331.0,88313.0,0.01132336]
[1767107964219,0.49494726,88331.0,88315.0,0.0113231]
[1767107964398,0.49494726,88330.0,88316.0,0.01144]
[1767107965145,0.74474,88333.0,88316.0,0.01144]
[1767107965283,0.74474,88333.0,88316.0,0.02276297]
[1767107965531,0.74474,88333.0,88316.0,0.01144]
[1767107966135,0.74474,88333.0,88316.0,0.02276297]
[1767107966491,0.74474,88333.0,88316.0,0.01144]
[1767107966678,0.74474,88333.0,88315.0,0.0113231]
[1767107966855,0.74474,88333.0,88316.0,0.01144]
[1767107967464,0.74474,88333.0,88316.0,0.02276297]
[1767107967641,0.75618,88340.0,88319.0,0.01132259]
[1767107967858,0.01144,88340.0,88314.0,0.01132323]
[1767107968179,0.50638726,88340.0,88319.0,0.01132259]
[1767107968626,0.74474,88356.0,88330.0,0.01132118]
[1767107968825,0.74474,88362.0,88340.0,0.00055]
[1767107969024,0.0115417,88357.0,88340.0,0.00055]
[1767107969135,0.0115417,88357.0,88333.0,0.01132079]
[1767107969339,0.0115417,88357.0,88332.0,0.01132092]
[1767107969539,0.0115417,88357.0,88331.0,0.07936631]
[1767107969540,0.0115417,88357.0,88331.0,0.02276105]
[1767107969781,0.0115417,88357.0,88332.0,0.01132092]
[1767107969982,0.00030714,88353.0,88331.0,0.02276105]
[1767107970394,0.00030714,88353.0,88339.0,0.01132002]
[1767107970567,0.0115417,88357.0,88338.0,0.01132015]
[1767107970568,0.0001017,88357.0,88344.0,0.01131938]
[1767107970768,0.01164,88364.0,88357.0,0.000101]
[1767107970769,0.0002,88364.0,88357.0,0.000101]
[1767107970966,0.74474,88382.0,88357.0,0.000101]
[1767107970967,0.01184,88373.0,88357.0,0.000101]
[1767107971174,0.01184,88373.0,88355.0,0.01131797]
[1767107971372,0.01184,88373.0,88354.0,0.0002]
[1767107972827,0.01184,88373.0,88357.0,0.01131772]
[1767107972983,0.01184,88373.0,88356.0,0.01131785]
[1767107973182,0.01184,88373.0,88354.0,0.0002]
[1767107973388,0.01184,88373.0,88355.0,0.01131797]
[1767107973660,0.01184,88373.0,88356.0,0.01144]
[1767107974422,0.01184,88373.0,88357.0,0.01144]
[1767107974624,0.49494726,88370.0,88357.0,0.010891]
[1767107974823,0.01184,88373.0,88357.0,0.010891]
[1767107974996,0.01184,88373.0,88354.0,0.0002]
[1767107974997,0.74474,88369.0,88354.0,0.0002]
[1767107975202,0.74474,88363.0,88344.0,0.00010714]
[1767107975410,0.49494726,88364.0,88298.0,0.14597943]
[1767107975411,0.74474,88353.0,88298.0,0.14597943]
[1767107975608,0.74474,88347.0,88319.0,0.0679351]
[1767107975812,0.74474,88347.0,88334.0,0.0002]
[1767107977783,0.49494726,88344.0,88334.0,0.0002]
[1767107978049,0.01144,88343.0,88334.0,0.0002]
[1767107979432,1.11686,88335.0,88334.0,0.0002]
[1767107979634,1.1283,88335.0,88334.0,0.0002]
[1767107979807,0.74474,88334.0,88311.0,0.01144]
[1767107980188,0.72568858,88330.0,88306.0,0.01132425]
[1767107980390,0.74474,88329.0,88307.0,0.01132413]
[1767107980829,0.74474,88329.0,88309.0,0.01132387]
[1767107981027,0.74474,88329.0,88308.0,0.08674695]
[1767107981229,0.72568858,88320.0,88300.0,0.01132502]
[1767107981425,0.01144,88320.0,88301.0,0.0113249]
[1767107981855,0.01144,88320.0,88301.0,0.0835272]
[1767107982058,0.01144,88320.0,88299.0,0.0002]
[1767107982447,0.74474,88319.0,88302.0,0.0006489]
[1767107985169,0.01144,88320.0,88302.0,0.01197367]
[1767107985372,1.47042858,88340.0,88322.0,0.0113222]
[1767107985574,0.01055602,88339.0,88322.0,0.05661042]
[1767107985914,0.01144,88340.0,88323.0,0.01132207]
[1767107986115,0.01144,88340.0,88330.0,0.01132118]
[1767107986253,0.01144,88349.0,88340.0,0.000549]
[1767107986593,0.01144,88349.0,88328.0,0.01132143]
[1767107986594,0.01056329,88348.0,88328.0,0.01132143]
[1767107986818,0.01056329,88347.0,88328.0,0.01132143]
[1767107986956,0.01144,88349.0,88324.0,0.01132195]
[1767107986957,0.01056329,88346.0,88324.0,0.08421003]
[1767107987158,0.01056329,88345.0,88326.0,0.01132169]
[1767107987344,0.01056329,88344.0,88320.0,0.01132246]
[1767107987540,0.01057183,88343.0,88328.0,0.01132143]
[1767107987784,0.01057183,88342.0,88327.0,0.01132156]
[1767107987957,0.00010708,88344.0,88327.0,0.01132156]
[1767107988156,0.0105716,88343.0,88328.0,0.01132143]
[1767107988385,0.0105716,88342.0,88328.0,0.01132143]
[1767107988579,0.00010708,88344.0,88328.0,0.01132143]
[1767107988779,0.75673154,88343.0,88318.0,0.05661302]
[1767107988980,0.72568858,88340.0,88323.0,0.01144]
[1767107989186,0.02201154,88339.0,88319.0,0.01132259]
[1767107989381,0.01144,88339.0,88319.0,0.01132259]
[1767107989587,0.01144,88339.0,88318.0,0.02276272]
[1767107989588,0.01144,88339.0,88326.0,0.01132169]
[1767107989770,0.01144,88339.0,88318.0,0.01144]
[1767107989771,0.010891,88339.0,88324.0,0.01132195]
[1767107989964,0.010891,88339.0,88325.0,0.01132182]
[1767107990170,0.010891,88339.0,88324.0,0.01132195]
[1767107990569,0.010891,88339.0,88323.0,0.01132207]
[1767107990770,0.010891,88339.0,88324.0,0.01132195]
[1767107990994,0.74616,88338.0,88317.0,0.08494681]
[1767107991357,0.74616,88338.0,88310.0,0.01132374]
[1767107991358,0.01057306,88337.0,88310.0,0.01132374]
[1767107991647,0.75673306,88336.0,88310.0,0.09517355]
[1767107991870,0.01057306,88335.0,88310.0,0.09517355]
[1767107992042,0.74616,88333.0,88306.0,0.01132425]
[1767107992201,0.74616,88329.0,88307.0,0.01132413]
[1767107992400,0.02201306,88328.0,88307.0,0.06794419]
[1767107992630,0.02201306,88328.0,88302.0,0.0005417]
[1767107992631,0.74616,88326.0,88302.0,0.0005417]
[1767107992786,0.01057306,88325.0,88302.0,0.0005417]
[1767107992995,0.01057306,88324.0,88304.0,0.01132451]
[1767107993211,0.01057306,88323.0,88308.0,0.011324]
[1767107993514,0.01144,88328.0,88309.0,0.01132387]
[1767107993735,0.01057565,88327.0,88309.0,0.01132387]
[1767107993921,0.01057565,88326.0,88309.0,0.01132387]
[1767107994053,0.01057566,88325.0,88311.0,0.01132361]
[1767107994419,0.01057566,88324.0,88310.0,0.01132374]
[1767107994633,0.01144,88328.0,88310.0,0.01132374]
[1767107994872,0.01057499,88327.0,88314.0,0.01132323]
[1767107995077,0.14110062,88388.0,88307.0,0.22648063]
[1767107995078,0.04532,88342.0,88326.0,0.01132169]
[1767107995230,0.0002,88337.0,88329.0,0.01132131]
[1767107995433,0.01144,88345.0,88329.0,0.01132131]
[1767107995667,0.01144,88345.0,88324.0,0.01132195]
[1767107995835,0.01144,88345.0,88326.0,0.01132169]
[1767107996242,0.01144,88345.0,88328.0,0.01132143]
[1767107996784,0.01144,88345.0,88327.0,0.01132156]
[1767107997193,0.01144,88345.0,88328.0,0.01132143]
[1767107997495,0.01144,88345.0,88326.0,0.01132169]
[1767107997905,0.77655925,88366.0,88320.0,0.80756839]
[1767107998138,0.01144,88365.0,88341.0,0.01131977]
[1767107998349,0.74616,88372.0,88330.0,0.80756839]
[1767107998350,0.0002,88354.0,88350.0,0.01131861]
[1767107998564,0.0002,88354.0,88341.0,0.01131977]
[1767107998749,0.0002,88354.0,88340.0,0.05659941]
[1767107998750,0.80756839,88360.0,88338.0,0.01144]
[1767107999075,0.80756839,88360.0,88338.0,0.02276015]
[1767107999281,1.55372839,88360.0,88337.0,0.01132028]
[1767107999502,0.74616,88359.0,88334.0,0.0002]
[1767107999722,0.74616,88359.0,88336.0,0.01132041]
[1767108000120,0.74616,88359.0,88335.0,0.01132054]
[1767108000440,0.80756839,88360.0,88337.0,0.05660142]
[1767108000644,0.80756839,88350.0,88334.0,0.00030708]
[1767108000818,0.000549,88337.0,88334.0,0.00030708]
[1767108001022,0.01144,88349.0,88334.0,0.00030708]
[1767108001222,0.74616,88348.0,88334.0,0.00030708]
[1767108001405,0.3388,88335.0,88334.0,8e-08]
[1767108001603,1.0964,88335.0,88334.0,8e-08]
[1767108001806,1.0964,88335.0,88302.0,0.01186647]
[1767108001807,0.74616,88334.0,88302.0,0.0005417]
[1767108002169,0.01144,88335.0,88302.0,0.0005417]
[1767108002170,0.0002,88317.0,88302.0,0.0005417]
[1767108002288,0.0002,88317.0,88303.0,0.01132464]
[1767108002531,0.0002,88317.0,88302.0,0.0006489]
[1767108002786,0.0002,88317.0,88302.0,0.01197367]
[1767108003051,0.01144,88319.0,88309.0,0.01132387]
[1767108003388,0.01144,88321.0,88308.0,0.011324]
[1767108003566,0.01144,88321.0,88310.0,0.01132374]
[1767108003974,0.01144,88321.0,88308.0,0.011324]
[1767108004168,0.01144,88321.0,88310.0,0.01132374]
[1767108004391,0.010934,88321.0,88310.0,0.01132374]
[1767108004589,0.010934,88321.0,88309.0,0.01132387]
[1767108004795,0.010934,88321.0,88310.0,0.01132374]
[1767108005167,0.04053234,88354.0,88279.0,0.11260262]
[1767108005168,0.04532,88343.0,88318.0,0.06793575]
[1767108005373,0.01144,88342.0,88319.0,0.06793543]
[1767108005578,0.01144,88342.0,88322.0,0.0113222]
[1767108006050,0.01144,88342.0,88327.0,0.01132156]
[1767108006227,0.01144,88342.0,88323.0,0.01132207]
[1767108006439,0.01144,88342.0,88325.0,0.01132182]
[1767108006587,0.01144,88342.0,88316.0,0.22645869]
[1767108006588,0.70227,88339.0,88319.0,0.05661285]
[1767108006784,0.70227,88339.0,88322.0,0.0113222]
[1767108007036,0.01058545,88338.0,88320.0,0.01132246]
[1767108007228,0.01144,88342.0,88317.0,0.14597943]
[1767108007229,0.80756839,88330.0,88317.0,0.14597943]
[1767108007450,0.000549,88320.0,88317.0,0.14597943]
[1767108007654,0.01144,88329.0,88309.0,0.14597943]
[1767108007873,0.01144,88329.0,88309.0,0.1573033]
[1767108008130,0.71371,88329.0,88309.0,0.14597943]
[1767108010206,0.000549,88309.0,88294.0,0.14597943]
[1767108010396,0.01144,88316.0,88294.0,0.14597943]
[1767108010572,0.01144,88316.0,88294.0,0.15730522]
[1767108010923,0.01144,88316.0,88294.0,0.14597943]
[1767108011112,0.71371,88316.0,88303.0,2.2e-07]
[1767108011472,0.71371,88316.0,88290.0,0.06795773]
[1767108011473,0.70227,88312.0,88279.0,0.01132772]
[1767108011676,0.70227,88302.0,88279.0,0.01144]
[1767108011892,0.80756839,88303.0,88279.0,0.01144]
[1767108011893,0.70227,88300.0,88279.0,0.01144]
[1767108012294,0.70227,88300.0,88277.0,0.01132797]
[1767108012611,0.70227,88300.0,88277.0,0.01144]
[1767108013151,0.01144,88301.0,88300.0,0.000538]
[1767108013286,0.01144,88307.0,88301.0,0.00055]
[1767108013480,0.01144,88307.0,88292.0,0.01132605]
[1767108013889,0.01144,88307.0,88295.0,0.01132566]
[1767108014083,0.011399,88307.0,88293.0,0.01132592]
[1767108014287,0.011399,88307.0,88286.0,0.22653498]
[1767108014288,0.011399,88307.0,88290.0,0.01132631]
[1767108014624,0.011399,88307.0,88292.0,0.01132605]
[1767108015010,0.011399,88307.0,88287.0,0.02276669]
[1767108015210,0.011399,88307.0,88287.0,0.01144]
[1767108015395,0.011399,88307.0,88288.0,0.01132656]
[1767108015596,0.011399,88307.0,88287.0,0.01144]
[1767108015815,0.011399,88307.0,88282.0,0.01132733]
[1767108016015,0.011399,88307.0,88283.0,0.01144]
[1767108016423,0.011399,88307.0,88282.0,0.01132733]
[1767108016651,0.702969,88307.0,88285.0,0.01132695]
[1767108016883,0.011399,88307.0,88293.0,0.01132592]
[1767108017036,0.011399,88307.0,88291.0,0.01132618]
[1767108017037,7.272e-05,88312.0,88307.0,0.000538]
[1767108017241,0.00972015,88314.0,88307.0,0.000538]
[1767108017767,0.01144,88322.0,88304.0,0.0002]
[1767108017945,0.01144,88322.0,88304.0,0.00027272]
[1767108018148,0.01144,88322.0,88304.0,0.01159723]
[1767108018351,0.01144,88322.0,88304.0,0.00027272]
[1767108018577,0.01144,88322.0,88304.0,7.2e-07]
[1767108018578,0.69157,88320.0,88304.0,7.2e-07]
[1767108019408,0.69157,88320.0,88284.0,0.01132708]
[1767108019613,0.69157,88318.0,88284.0,0.02276708]
[1767108019784,0.69157,88318.0,88286.0,0.01132682]
[1767108019984,0.69157,88318.0,88284.0,0.02276708]
[1767108020209,0.69157,88318.0,88282.0,0.06341087]
[1767108020430,0.69157,88316.0,88286.0,0.01144]
[1767108020583,0.69157,88316.0,88292.0,0.14498062]
[1767108021220,0.69157,88316.0,88292.0,0.0003072]
[1767108021803,0.69167712,88320.0,88292.0,0.0003072]
[1767108022193,0.69167712,88320.0,88293.0,0.01132592]
[1767108022597,0.69167712,88320.0,88293.0,0.0003072]
[1767108022797,0.69167712,88320.0,88293.0,0.01163312]
[1767108023264,0.69167712,88320.0,88294.0,0.01132579]
[1767108023443,0.69167712,88320.0,88294.0,0.0003072]
[1767108024023,0.69167712,88320.0,88295.0,0.01132566]
[1767108024222,0.69167712,88320.0,88294.0,0.0003072]
[1767108024223,0.00010712,88320.0,88302.0,0.01132477]
[1767108024617,0.00010712,88320.0,88303.0,0.01132464]
[1767108024816,0.00010712,88320.0,88301.0,0.0679494]
[1767108025049,0.00010712,88320.0,88302.0,0.01132477]
[1767108025715,0.00010712,88320.0,88300.0,0.01132502]
[1767108025958,0.00010712,88320.0,88301.0,0.0113249]
[1767108026115,0.00010712,88320.0,88302.0,0.01132477]
[1767108026315,0.00010712,88320.0,88304.0,0.01132451]
[1767108026514,1.2e-07,88320.0,88307.0,0.01132413]
[1767108026763,1.2e-07,88320.0,88308.0,0.011324]
[1767108026935,1.2e-07,88320.0,88311.0,0.01132361]
[1767108027387,1.2e-07,88320.0,88310.0,0.01132374]
[1767108027609,0.0002,88324.0,88315.0,0.05661509]
[1767108027810,0.0002,88324.0,88312.0,0.01132348]
[1767108027811,0.04532,88336.0,88322.0,0.0113222]
[1767108028029,0.04532,88336.0,88322.0,0.01142932]
[1767108028335,0.04532,88336.0,88323.0,0.01132207]
[1767108028786,0.04532,88336.0,88322.0,0.00010712]
[1767108030553,4.5e-05,88322.0,88309.0,0.14467342]
[1767108030760,0.01144,88321.0,88303.0,0.01132464]
[1767108030973,0.01144,88321.0,88302.0,0.01132477]
[1767108031191,0.70301,88321.0,88302.0,0.01132477]
[1767108031573,0.70301,88321.0,88303.0,0.01132464]
[1767108031889,0.01144,88321.0,88301.0,0.0113249]
[1767108032036,0.01144,88321.0,88300.0,0.01132502]
[1767108032434,0.69157,88320.0,88298.0,0.01144]
[1767108032802,0.69157,88320.0,88298.0,0.02276528]
[1767108032979,0.01144,88321.0,88300.0,0.01132502]
[1767108033182,0.01144,88321.0,88301.0,0.0113249]
[1767108033391,0.01144,88321.0,88298.0,0.01144]
[1767108033586,0.01144,88321.0,88297.0,0.0003072]
[1767108033587,4.5e-05,88301.0,88297.0,0.0003072]
[1767108033825,0.01144,88311.0,88297.0,0.0003072]
[1767108034235,0.69157,88310.0,88297.0,2e-07]
[1767108035522,1.06341,88298.0,88297.0,2e-07]
[1767108035813,0.69157,88297.0,88275.0,0.0003542]
[1767108036016,0.69157,88297.0,88275.0,6.62e-05]
[1767108036148,0.01144,88298.0,88275.0,6.62e-05]
[1767108036149,0.69157,88295.0,88275.0,6.62e-05]
[1767108036350,0.69157,88293.0,88275.0,6.62e-05]
[1767108037185,0.04532,88294.0,88275.0,6.62e-05]
[1767108037383,0.73689,88294.0,88275.0,6.62e-05]
[1767108038205,0.04532,88294.0,88275.0,6.62e-05]
[1767108038755,0.73689,88294.0,88275.0,6.62e-05]
[1767108041860,0.69157,88292.0,88275.0,6.62e-05]
[1767108042033,0.69157,88290.0,88275.0,6.62e-05]
[1767108042230,0.01144,88291.0,88275.0,6.62e-05]
[1767108042410,0.70301,88291.0,88275.0,6.62e-05]
[1767108042817,0.70301,88291.0,88260.0,0.0002]
[1767108042818,0.37184,88276.0,88260.0,0.0002]
[1767108043038,0.04532,88294.0,88260.0,0.0002]
[1767108043039,0.70301,88275.0,88260.0,0.00055652]
[1767108044032,0.69157,88273.0,88260.0,0.00055652]
[1767108044253,0.73689,88273.0,88260.0,0.00055652]
[1767108044713,1.06341,88261.0,88260.0,0.00055652]
[1767108044918,1.07485,88261.0,88260.0,0.00055652]
[1767108045368,0.69157,88260.0,88254.0,0.0003542]
[1767108045523,0.69192696,88260.0,88254.0,0.0003542]
[1767108047291,0.00035696,88260.0,88254.0,0.0003542]
[1767108047941,9.6e-07,88260.0,88254.0,0.0003542]
[1767108048172,0.01144,88259.0,88254.0,0.0003542]
[1767108048371,0.010697,88259.0,88254.0,0.00046114]
[1767108049470,0.04532,88276.0,88256.0,0.01133067]
[1767108049626,0.01144,88275.0,88254.0,0.01179207]
[1767108049827,0.01144,88275.0,88254.0,0.00046114]
[1767108050550,0.7272,88274.0,88254.0,0.00046114]
[1767108051340,0.01144,88275.0,88254.0,0.00046114]
[1767108051678,0.7272,88280.0,88254.0,0.00046114]
[1767108051880,0.04532,88279.0,88264.0,0.01132964]
[1767108052030,0.04532,88279.0,88261.0,0.01133003]
[1767108052031,0.7272,88277.0,88261.0,0.01133003]
[1767108052232,0.01144,88278.0,88257.0,0.01133054]
[1767108052435,0.73864,88278.0,88254.0,0.01179207]
[1767108052644,0.7272,88306.0,88266.0,0.01132939]
[1767108052824,0.7272,88300.0,88267.0,0.01132926]
[1767108053030,0.7272,88298.0,88260.0,0.55137464]
[1767108053233,0.7272,88296.0,88261.0,0.01133003]
[1767108053439,0.7272,88294.0,88262.0,0.0113299]
[1767108053638,0.7272,88294.0,88261.0,0.01133003]
[1767108053920,0.7272,88294.0,88267.0,0.01132926]
[1767108054075,0.7272,88294.0,88264.0,0.05664819]
[1767108054274,0.7272,88294.0,88263.0,0.01132977]
[1767108054478,0.7272,88294.0,88257.0,0.01133054]
[1767108054702,0.7272,88292.0,88253.0,0.01133105]
[1767108054896,0.7272,88290.0,88254.0,0.01179207]
[1767108055101,0.7272,88290.0,88254.0,0.00046114]
[1767108055446,0.7272,88288.0,88257.0,0.01133054]
[1767108055616,0.7272,88286.0,88258.0,0.01133041]
[1767108055959,0.7272,88286.0,88255.0,0.06798427]
[1767108056160,0.7272,88286.0,88256.0,0.01133067]
[1767108056467,0.7272,88286.0,88254.0,0.00046114]
[1767108057471,0.7272,88286.0,88254.0,0.01179207]
[1767108057627,0.7272,88286.0,88256.0,0.01133067]
[1767108057831,0.7272,88286.0,88254.0,0.00046114]
[1767108058013,0.7272,88284.0,88254.0,0.00046114]
[1767108058219,0.7272,88282.0,88254.0,0.00046114]
[1767108058542,0.08547281,88283.0,88254.0,0.00046114]
[1767108058543,0.7272,88280.0,88254.0,0.00046114]
[1767108058728,0.7272,88278.0,88254.0,0.00046114]
[1767108059333,0.05676,88279.0,88254.0,0.00046114]
[1767108059334,0.7272,88276.0,88254.0,0.00046114]
[1767108059535,0.7272,88276.0,88254.0,1.4e-07]
[1767108060172,0.01056731,88275.0,88254.0,1.4e-07]
[1767108060414,0.0616387,88298.0,88265.0,0.55137464]
[1767108060415,0.72337,88294.0,88265.0,0.55137464]
[1767108060569,0.01144,88293.0,88275.0,0.000461]
[1767108060770,0.73481,88292.0,88275.0,0.000461]
[1767108060962,0.73481,88292.0,88263.0,0.01132977]
[1767108061166,0.06133667,88321.0,88254.0,1.4e-07]
[1767108061167,0.72337,88306.0,88281.0,0.01132746]
[1767108061496,0.02201073,88305.0,88286.0,0.01132682]
[1767108061635,0.01144,88305.0,88286.0,0.06796083]
[1767108061835,0.01144,88305.0,88287.0,0.01132669]
[1767108062124,0.01144,88305.0,88286.0,0.01132682]
[1767108062275,0.0115471,88305.0,88285.0,0.01132695]
[1767108062485,0.0001071,88305.0,88290.0,0.01132631]
[1767108062681,0.01144,88304.0,88290.0,0.01132631]
[1767108062859,0.01144,88304.0,88285.0,0.05663454]
[1767108063059,0.01144,88304.0,88281.0,0.01132746]
[1767108063467,0.72337,88303.0,88278.0,0.09743332]
[1767108063753,0.01058035,88302.0,88268.0,0.01132913]
[1767108063975,0.01144,88304.0,88271.0,0.01132874]
[1767108063976,0.73395035,88301.0,88271.0,0.01132874]
[1767108064211,0.72337,88299.0,88270.0,0.01132887]
[1767108064407,0.72337,88299.0,88275.0,0.01132823]
[1767108064614,0.01144,88304.0,88278.0,0.01132785]
[1767108064788,0.01058502,88303.0,88280.0,0.01132759]
[1767108064986,0.72337,88301.0,88274.0,0.05664172]
[1767108065246,0.72337,88299.0,88268.0,0.08406618]
[1767108065419,0.72337,88297.0,88270.0,0.01132887]
[1767108065607,0.72337,88295.0,88273.0,0.01132849]
[1767108065994,0.72337,88295.0,88274.0,0.01132836]
[1767108066411,0.0001071,88305.0,88276.0,0.06796807]
[1767108066412,0.01144,88294.0,88276.0,0.06796807]
[1767108066614,0.04532,88303.0,88281.0,0.01132746]
[1767108066816,0.72337,88301.0,88269.0,0.011329]
[1767108067018,0.72337,88299.0,88284.0,0.0002]
[1767108067595,0.0002,88304.0,88284.0,0.0002]
[1767108067814,0.02202702,88303.0,88287.0,0.01132669]
[1767108068018,0.02202702,88303.0,88284.0,0.01152708]
[1767108068019,0.01144,88303.0,88284.0,0.01152708]
[1767108068261,0.01144,88303.0,88286.0,0.01132682]
[1767108068460,0.01144,88303.0,88287.0,0.01132669]
[1767108069211,0.0002,88304.0,88290.0,0.01132631]
[1767108069435,0.0002,88304.0,88293.0,0.01132592]
[1767108069436,0.00707923,88303.0,88293.0,0.01132592]
[1767108069631,0.01144,88311.0,88296.0,0.01132554]
[1767108069926,0.01144,88311.0,88296.0,0.0001071]
[1767108070274,0.01144,88311.0,88297.0,0.01132541]
[1767108070473,0.01144,88311.0,88296.0,0.0001071]
[1767108071103,0.01144,88311.0,88296.0,0.01143264]
[1767108071104,0.0115244,88311.0,88296.0,0.01143264]
[1767108071279,0.0115244,88311.0,88297.0,0.06795196]
[1767108071490,0.0115244,88311.0,88297.0,0.01132541]
[1767108072160,0.0115244,88311.0,88296.0,0.0001071]
[1767108072161,0.72337,88310.0,88296.0,0.0001071]
[1767108072720,0.72337,88310.0,88296.0,1e-07]
[1767108074676,0.68935949,88310.0,88296.0,1e-07]
[1767108074876,0.01144,88309.0,88296.0,1e-07]
[1767108076790,0.011333,88308.0,88297.0,0.01132541]
[1767108076996,0.011333,88308.0,88296.0,1e-07]
[1767108077196,0.011333,88308.0,88297.0,0.01132541]
[1767108077566,0.011333,88308.0,88296.0,1e-07]
[1767108079437,0.699963,88308.0,88296.0,1e-07]
[1767108079882,0.011333,88308.0,88296.0,0.01132564]
[1767108080038,0.011333,88308.0,88296.0,1e-07]
[1767108080844,0.68863,88307.0,88296.0,1e-07]
[1767108081430,0.011333,88308.0,88296.0,1e-07]
[1767108082835,0.011333,88308.0,88296.0,0.01132564]
[1767108083189,0.011333,88308.0,88296.0,1e-07]
[1767108083332,0.011333,88308.0,88296.0,0.01132564]
[1767108083532,0.0002,88315.0,88296.0,0.01132564]
[1767108083533,0.0002,88315.0,88298.0,0.55137464]
[1767108083735,0.04532,88328.0,88306.0,0.06794493]
[1767108083980,0.01144,88316.0,88306.0,0.01132425]
[1767108084192,0.01144,88316.0,88305.0,0.01132438]
[1767108084366,0.01144,88316.0,88297.0,0.01132541]
[1767108084569,0.01144,88316.0,88300.0,0.01132502]
[1767108084768,0.01144,88316.0,88300.0,0.05662514]
[1767108085004,0.01144,88316.0,88304.0,0.01132451]
[1767108085225,0.01144,88316.0,88302.0,0.01132477]
[1767108085569,0.01144,88316.0,88303.0,0.01132464]
[1767108085768,0.01144,88316.0,88302.0,0.01132477]
[1767108085967,0.01144,88316.0,88305.0,0.01132438]
[1767108086173,0.01144,88316.0,88304.0,0.01132451]
[1767108086490,0.01144,88316.0,88302.0,0.05662334]
[1767108086694,0.01144,88316.0,88303.0,0.01132464]
[1767108087103,0.01144,88316.0,88305.0,0.01132438]
[1767108087281,0.01144,88316.0,88303.0,0.01132464]
[1767108087635,0.01144,88316.0,88302.0,0.01132477]
[1767108087984,0.01144,88316.0,88294.0,0.01144]
[1767108088181,0.001099,88302.0,88296.0,0.0114401]
[1767108088404,0.01144,88316.0,88296.0,0.0114401]
[1767108088784,0.68863,88319.0,88298.0,0.05662642]
[1767108089091,0.01144,88326.0,88319.0,0.000549]
[1767108089305,1.6e-07,88321.0,88309.0,0.56269851]
[1767108089506,1.6e-07,88321.0,88310.0,0.01132374]
[1767108089880,0.03039925,88346.0,88310.0,0.01132374]
[1767108089881,0.68863,88349.0,88316.0,0.01132297]
[1767108090053,0.01144,88338.0,88316.0,0.01132297]
[1767108090293,0.01144,88338.0,88318.0,0.01132272]
[1767108090470,0.01144,88338.0,88328.0,0.01132143]
[1767108090471,1e-07,88334.0,88328.0,0.01132143]
[1767108090662,0.01144,88338.0,88325.0,0.01132182]
[1767108090807,0.01144,88338.0,88323.0,0.01132207]
[1767108091005,0.01144,88338.0,88318.0,0.01132272]
[1767108091006,0.68863,88347.0,88328.0,0.01132143]
[1767108091208,0.68863,88355.0,88333.0,0.01132079]
[1767108091431,0.0220338,88354.0,88333.0,0.01132079]
[1767108091750,0.0220338,88354.0,88332.0,0.01132092]
[1767108091751,0.00035747,88354.0,88339.0,0.01132002]
[1767108091947,0.01144,88353.0,88330.0,0.02276118]
[1767108092148,0.01144,88353.0,88296.0,0.09899026]
[1767108092149,0.68863,88352.0,88323.0,0.01132207]
[1767108092348,0.68863,88352.0,88321.0,0.01144]
[1767108092547,0.68863,88350.0,88321.0,0.01144]
[1767108092792,0.68863,88348.0,88321.0,0.01144]
[1767108094436,0.01144,88353.0,88321.0,0.01144]
[1767108094437,0.68863,88346.0,88321.0,0.01144]
[1767108094975,0.68863,88346.0,88315.0,0.0113231]
[1767108095180,0.68863,88346.0,88316.0,0.01132297]
[1767108095896,0.68863,88346.0,88315.0,0.0113231]
[1767108096150,0.68863,88346.0,88313.0,0.01132336]
[1767108096494,0.68863,88346.0,88317.0,0.01132284]
[1767108096694,0.68863,88346.0,88315.0,0.0113231]
[1767108096903,0.68863,88346.0,88316.0,0.01132297]
[1767108097098,0.68863,88346.0,88312.0,0.01144]
[1767108097302,0.68863,88344.0,88305.0,0.01132438]
[1767108097523,0.00035747,88354.0,88303.0,0.00053822]
[1767108097524,0.68863,88342.0,88303.0,0.00053822]
[1767108097726,0.68863,88340.0,88305.0,0.01132438]
[1767108097961,0.68863,88338.0,88306.0,0.01132425]
[1767108098176,0.68863,88336.0,88306.0,0.01132425]
[1767108098314,0.68863,88334.0,88306.0,0.01132425]
[1767108098516,0.68863,88334.0,88308.0,0.011324]
[1767108098722,0.68863,88334.0,88305.0,0.01132438]
[1767108098923,0.68863,88334.0,88303.0,0.00053822]
[1767108099121,0.68863,88332.0,88303.0,0.00017822]
[1767108099342,0.68863,88330.0,88303.0,0.00017822]
[1767108099566,0.68863,88328.0,88303.0,0.00017822]
[1767108099867,0.68863,88326.0,88303.0,0.00017822]
[1767108100203,0.68863,88324.0,88303.0,0.00017822]
[1767108100347,0.3416,88304.0,88303.0,0.00017822]
[1767108100702,1.04167,88304.0,88303.0,0.00017822]
[1767108101272,1.04177712,88304.0,88303.0,0.00017822]
[1767108101506,0.68863,88303.0,88284.0,0.0002]
[1767108101713,0.68863,88303.0,88278.0,0.0003721]
[1767108101714,0.68863,88301.0,88278.0,0.0003721]
[1767108101919,0.0002,88294.0,88278.0,0.0003721]
[1767108102117,0.70007,88293.0,88278.0,0.0003721]
[1767108102697,0.0002,88294.0,88278.0,0.0003721]
[1767108102698,0.68863,88291.0,88278.0,0.0003721]
[1767108103478,0.68863,88291.0,88278.0,2.21e-05]
[1767108104520,1.03023,88279.0,88278.0,2.21e-05]
[1767108104792,1.03023,88279.0,88252.0,0.01133118]
[1767108104793,0.68863,88274.0,88252.0,0.01133118]
[1767108104900,0.68863,88274.0,88248.0,0.05665825]
[1767108104901,0.68863,88274.0,88248.0,0.05665848]
[1767108105102,0.68863,88274.0,88252.0,0.01133118]
[1767108105302,0.68863,88274.0,88251.0,0.01133131]
[1767108105536,0.68863,88274.0,88252.0,0.01133118]
[1767108105747,0.01144,88279.0,88254.0,0.01133093]
[1767108106078,0.68863,88278.0,88255.0,0.0113308]
[1767108106864,0.68863,88278.0,88253.0,0.01133105]
[1767108107061,0.68863,88278.0,88257.0,0.01133054]
[1767108107261,0.68863,88278.0,88258.0,0.01133041]